bitfinex/quotes_ETHUSD_20251118
["timestamp","ask_amount","ask_price","bid_price","bid_amount"]
[1763441248312,0.02734055,2980.7,2979.1,0.23043496]
[1763441248513,0.02734055,2980.7,2979.2,0.1896]
[1763441248681,0.02734055,2980.7,2976.0,0.1896]
[1763441248882,0.02734055,2980.7,2974.9,0.1896]
[1763441248883,0.0964,2977.6,2976.2,1.64154179]
[1763441249102,0.0932,2979.0,2976.2,1.64154179]
[1763441249103,0.3,2977.5,2976.2,2.12484179]
[1763441249285,1.27151954,2977.5,2976.1,0.11366644]
[1763441249487,0.1864,2978.4,2976.3,1.61248068]
[1763441249707,0.01895864,2978.3,2976.3,1.61248068]
[1763441249940,0.01895864,2978.3,2976.2,0.6369]
[1763441249941,0.455504,2978.2,2976.5,1.60628086]
[1763441250141,0.01895864,2978.1,2976.5,1.60628086]
[1763441250349,0.4872,2978.2,2976.6,0.4833]
[1763441250560,0.4872,2978.2,2976.3,0.4833]
[1763441250842,0.309,2978.1,2976.4,0.405504]
[1763441251162,0.309,2978.1,2976.3,0.4833]
[1763441251163,0.01895864,2978.0,2976.3,0.4833]
[1763441251437,0.50615864,2978.0,2976.3,0.4833]
[1763441251597,0.01895864,2978.0,2976.3,0.4833]
[1763441251799,0.1864,2976.4,2974.9,0.4833]
[1763441252001,0.32795864,2976.3,2975.3,0.4833]
[1763441252205,0.01895864,2976.2,2975.2,0.6729]
[1763441252649,0.309,2976.3,2975.3,0.4833]
[1763441252961,0.309,2976.3,2974.8,0.309]
[1763441252962,0.50615864,2976.2,2974.8,0.309]
[1763441253130,0.4872,2976.2,2974.8,0.309]
[1763441253333,0.54773288,2976.1,2974.8,0.7923]
[1763441253547,0.52877424,2976.1,2974.8,0.4833]
[1763441253732,0.50615864,2976.0,2974.2,1.67044118]
[1763441254066,0.50615864,2976.0,2973.6,1.63571095]
[1763441254067,0.1864,2974.9,2973.6,1.63571095]
[1763441254211,0.95002072,2976.0,2973.8,1.66124302]
[1763441254212,0.311,2974.8,2973.8,1.66124302]
[1763441254405,0.311,2974.7,2974.0,1.6079588]
[1763441254853,0.50615864,2974.6,2974.0,1.6079588]
[1763441255034,0.50615864,2974.6,2973.4,1.64466977]
[1763441255237,0.50615864,2974.6,2973.1,0.4833]
[1763441255238,2.44495864,2974.5,2973.7,1.6162622]
[1763441255411,0.1864,2973.8,2973.7,1.6162622]
[1763441255611,0.1864,2973.8,2972.6,0.09083496]
[1763441255612,6.38256646,2973.8,2972.7,1.63768081]
[1763441255835,6.38256646,2973.0,2972.6,0.09083496]
[1763441256034,0.42446264,2972.9,2972.6,0.09083496]
[1763441256247,0.42446264,2972.9,2970.3,0.1807]
[1763441256248,0.405504,2972.7,2970.3,0.1807]
[1763441256418,0.405504,2972.7,2970.1,1.01415935]
[1763441256419,6.38256646,2971.7,2970.1,1.01415935]
[1763441256619,0.40162404,2972.6,2969.6,0.1807]
[1763441256620,0.01895864,2971.6,2969.6,0.1807]
[1763441256817,0.312,2971.5,2969.9,1.50607829]
[1763441257162,0.01895864,2971.4,2969.9,1.01447829]
[1763441257364,0.01895864,2971.4,2969.9,1.50607829]
[1763441257539,0.01895864,2971.4,2969.9,1.01447829]
[1763441257739,0.01895864,2971.4,2971.0,5.50481348]
[1763441257949,0.87012883,2975.6,2971.0,5.50481348]
[1763441257950,0.313,2971.3,2971.0,5.50481348]
[1763441258152,0.90660263,2973.1,2971.1,0.4916]
[1763441258454,2.428,2973.0,2971.3,6.41959071]
[1763441258655,0.16998799,2973.1,2973.0,0.1807]
[1763441258964,0.87012883,2977.8,2973.0,0.1807]
[1763441258965,0.46282072,2976.3,2973.1,0.405504]
[1763441259130,0.3556654,2976.4,2973.1,0.405504]
[1763441259131,6.01408671,2976.9,2973.3,0.405504]
[1763441259328,6.01408671,2976.9,2973.2,0.405504]
[1763441259664,0.46282072,2977.3,2973.0,0.1807]
[1763441259665,0.313,2976.8,2973.8,0.405504]
[1763441259825,0.313,2976.8,2973.4,1.01243096]
[1763441259826,0.313,2976.7,2974.0,0.405504]
[1763441260027,0.313,2976.7,2973.5,0.4916]
[1763441260230,6.01408671,2976.0,2973.5,0.219515]
[1763441260428,6.01408671,2976.0,2973.4,1.01243096]
[1763441260429,0.90699264,2975.3,2973.4,1.01243096]
[1763441260667,1.152493,2975.2,2972.0,0.6723]
[1763441260841,0.95699264,2974.3,2972.0,0.1807]
[1763441261170,1.215,2973.5,2972.1,0.4916]
[1763441261332,1.215,2973.5,2971.7,1.01243096]
[1763441261333,0.314,2973.4,2971.7,1.01243096]
[1763441261534,0.314,2973.4,2971.8,0.4916]
[1763441261766,0.314,2973.4,2972.0,6.01408671]
[1763441262075,0.314,2973.4,2971.8,0.4916]
[1763441262076,0.05,2976.3,2973.3,0.1807]
[1763441262279,0.05,2978.7,2975.1,0.405504]
[1763441262493,6.01408671,2978.9,2975.1,0.405504]
[1763441262647,1.63281805,2978.5,2975.2,0.4916]
[1763441262977,0.05,2978.0,2975.2,0.4916]
[1763441263141,0.05,2978.8,2975.2,0.4916]
[1763441263343,0.05,2978.8,2975.3,0.65056867]
[1763441263550,0.321,2978.7,2975.3,0.405504]
[1763441263745,6.01408671,2977.7,2975.4,0.4916]
[1763441263946,0.05,2977.6,2974.9,0.1807]
[1763441264277,6.06408671,2977.2,2974.3,0.4916]
[1763441264485,2.07901871,2976.7,2974.3,0.4916]
[1763441264774,1.31249664,2976.5,2974.6,0.1807]
[1763441264975,1.31249664,2975.9,2973.7,0.4916]
[1763441265273,1.31249664,2975.7,2974.1,0.4916]
[1763441265480,0.405504,2975.7,2973.3,0.6723]
[1763441265777,0.455504,2975.2,2972.8,0.1807]
[1763441265947,1.31249664,2974.7,2973.1,0.4916]
[1763441266276,1.6377426,2977.7,2972.9,6.01408671]
[1763441266458,0.05,2977.3,2974.6,0.1807]
[1763441266774,6.01408671,2978.8,2975.3,6.01408671]
[1763441267093,34.482,2980.2,2975.4,0.897104]
[1763441267094,0.52867611,2975.6,2975.4,0.897104]
[1763441267247,0.05,2979.7,2975.6,0.405504]
[1763441267433,6.01408671,2979.4,2975.8,6.41959071]
[1763441267634,0.05,2980.0,2976.5,6.01408671]
[1763441267864,0.05,2979.2,2975.9,0.4916]
[1763441268140,0.90699264,2978.1,2975.7,0.4916]
[1763441268442,0.90699264,2978.0,2975.9,1.01225332]
[1763441269267,0.90699264,2978.0,2974.8,6.01408671]
[1763441269433,0.90699264,2978.0,2974.9,0.60140867]
[1763441269633,0.405504,2977.9,2974.7,0.4916]
[1763441269845,0.32,2977.8,2974.7,0.4916]
[1763441270274,0.32,2977.8,2975.5,6.01408671]
[1763441270476,0.05,2980.3,2977.7,0.1807]
[1763441270775,1.67987681,2980.9,2977.7,0.1807]
[1763441270776,6.06408671,2980.6,2977.8,0.4916]
[1763441270938,0.05,2980.6,2977.8,0.4916]
[1763441271137,0.46282072,2981.4,2977.9,6.01408671]
[1763441271375,1.69227198,2982.6,2977.8,0.4916]
[1763441271376,10.0,2980.3,2978.5,6.01408671]
[1763441271578,0.05,2982.3,2978.6,0.405504]
[1763441271762,0.05,2982.3,2978.7,0.64195907]
[1763441271963,1.66425895,2982.3,2978.7,0.64195907]
[1763441272168,2.02783451,2982.7,2979.2,6.01408671]
[1763441272369,0.90699264,2981.9,2978.8,0.4916]
[1763441272677,0.32,2982.2,2978.8,6.50568671]
[1763441272857,0.32,2982.2,2978.9,0.4916]
[1763441273052,0.32,2982.2,2979.0,0.65056867]
[1763441273279,0.32,2982.2,2979.1,0.4916]
[1763441273579,0.32,2982.2,2980.1,6.01408671]
[1763441273777,10.0,2981.9,2980.2,0.6723]
[1763441273981,10.0,2981.9,2980.7,6.01408671]
[1763441274144,0.32,2982.2,2980.4,0.405504]
[1763441274145,0.32,2982.2,2981.3,6.01408671]
[1763441274341,0.39062,2981.9,2981.7,0.1807]
[1763441274554,0.32,2982.2,2981.7,0.1807]
[1763441275293,2.428,2982.1,2981.8,0.4916]
[1763441275650,9.29008,2982.6,2981.9,0.405504]
[1763441275988,0.002,2983.5,2982.5,0.405504]
[1763441276158,0.002,2983.5,2982.5,1.04746307]
[1763441276481,0.002,2983.5,2983.0,6.01408671]
[1763441276683,0.002,2983.8,2983.0,6.01408671]
[1763441276984,0.002,2983.8,2983.6,6.01408671]
[1763441277184,0.002,2985.2,2983.7,0.3194]
[1763441277347,0.32,2985.1,2983.7,0.95274867]
[1763441277549,0.32,2985.1,2983.1,0.3194]
[1763441277858,0.98,2985.1,2983.1,0.3194]
[1763441278197,0.98,2985.1,2981.6,0.90699264]
[1763441278198,0.98,2985.1,2983.0,0.3194]
[1763441278361,0.32,2985.1,2983.1,6.01408671]
[1763441278563,0.32,2985.1,2983.2,0.63334867]
[1763441278764,0.4652,2985.0,2983.2,0.3194]
[1763441279499,0.32,2985.1,2983.4,6.01408671]
[1763441279648,0.32,2985.1,2983.4,0.3194]
[1763441279649,0.5148,2985.1,2983.4,0.3194]
[1763441279849,0.5148,2985.1,2977.2,2.99190017]
[1763441279850,1.37219264,2985.0,2982.9,0.3194]
[1763441280049,0.405504,2984.9,2982.4,6.01408671]
[1763441280392,1.31249664,2983.8,2981.3,0.3194]
[1763441280681,0.90699264,2984.0,2981.3,0.3194]
[1763441280847,0.405504,2984.0,2978.9,0.09999999]
[1763441281051,1.31249664,2983.4,2981.2,0.3194]
[1763441281253,0.405504,2983.2,2980.5,0.3194]
[1763441281460,0.979,2983.3,2980.5,0.3194]
[1763441281683,0.979,2983.3,2981.2,6.01408671]
[1763441281684,0.319,2983.3,2981.2,6.01408671]
[1763441281865,0.319,2983.3,2981.3,0.60140867]
[1763441282164,0.319,2983.3,2981.4,0.03354128]
[1763441282362,0.319,2983.3,2981.5,0.405504]
[1763441282594,0.7842,2983.3,2981.5,0.3194]
[1763441282800,0.405504,2982.5,2980.0,0.3194]
[1763441283084,0.90699264,2981.9,2980.0,0.3194]
[1763441283286,0.4652,2982.4,2980.3,0.3194]
[1763441283492,0.4652,2982.4,2979.7,0.3194]
[1763441283493,0.405504,2982.3,2979.7,0.3194]
[1763441283693,0.4652,2982.4,2977.1,1.6377426]
[1763441283694,0.4652,2982.4,2980.3,0.3194]
[1763441283895,0.4652,2982.9,2980.4,0.03355254]
[1763441284184,0.1948,2983.4,2980.4,0.03355254]
[1763441284185,0.1948,2983.4,2980.7,0.405504]
[1763441284386,0.4652,2984.2,2981.4,0.405504]
[1763441284572,0.4652,2984.2,2981.3,6.01408671]
[1763441284773,0.4652,2984.2,2981.4,0.724904]
[1763441285149,0.4652,2984.2,2981.5,0.3194]
[1763441285354,2.426,2983.2,2981.5,0.99329907]
[1763441285558,2.426,2983.2,2981.6,0.3194]
[1763441285749,2.426,2983.2,2981.7,0.43904191]
[1763441285955,0.1948,2985.1,2983.1,0.1386]
[1763441286189,0.002,2985.5,2983.2,0.43902505]
[1763441286388,0.002,2985.5,2983.4,0.405504]
[1763441286699,0.002,2985.5,2983.5,0.3194]
[1763441287217,0.318,2985.1,2983.5,0.3194]
[1763441287622,0.318,2985.1,2983.7,0.405504]
[1763441287917,0.318,2985.1,2983.6,0.03351655]
[1763441287918,0.318,2985.1,2983.6,0.405504]
[1763441288082,0.318,2985.1,2983.7,0.3194]
[1763441288282,0.318,2985.1,2983.1,0.1386]
[1763441288523,0.318,2985.1,2983.7,0.3194]
[1763441288839,0.318,2985.1,2983.8,0.43901831]
[1763441288991,0.002,2985.7,2984.7,6.01408671]
[1763441289182,0.002,2987.2,2984.8,1.94740839]
[1763441289387,0.002,2987.2,2985.4,0.405504]
[1763441289610,0.002,2987.2,2985.6,0.405504]
[1763441289817,0.002,2987.2,2985.5,0.3154]
[1763441290320,0.002,2987.2,2983.1,0.23859999]
[1763441290321,0.196,2986.8,2984.7,0.3154]
[1763441290524,0.405504,2986.4,2983.9,0.3154]
[1763441290816,0.405504,2986.4,2984.4,0.3154]
[1763441291018,0.318,2986.5,2984.4,0.3154]
[1763441291188,0.318,2986.5,2984.5,0.03350644]
[1763441291383,0.318,2986.5,2985.0,1.31249664]
[1763441291590,0.318,2986.5,2985.1,0.3154]
[1763441291886,0.318,2986.5,2985.1,0.34889971]
[1763441292208,0.318,2986.5,2985.2,0.405504]
[1763441292409,0.002,2986.6,2985.4,1.31249664]
[1763441292601,0.002,2986.5,2986.0,0.405504]
[1763441292798,0.002,2986.5,2985.5,0.76615356]
[1763441292799,0.002,2987.2,2986.1,0.3134]
[1763441293027,0.002,2987.2,2985.5,0.73265834]
[1763441293028,0.002,2987.2,2985.5,1.04605834]
[1763441293184,0.6962,2986.8,2984.8,0.3134]
[1763441293411,0.002,2987.2,2985.6,6.01408671]
[1763441293595,0.196,2989.3,2987.1,0.1727]
[1763441293808,0.4982,2988.7,2985.8,0.405504]
[1763441294009,0.4982,2988.7,2985.8,0.716904]
[1763441294212,0.4982,2988.7,2986.0,0.405504]
[1763441294423,0.4982,2988.6,2986.2,0.405504]
[1763441294721,0.4982,2988.6,2985.9,0.53727983]
[1763441294722,0.4982,2988.6,2986.3,0.3114]
[1763441294925,0.196,2988.5,2986.3,0.3114]
[1763441295287,3.32899264,2988.4,2986.3,0.3114]
[1763441295489,1.40519264,2988.3,2986.3,0.3114]
[1763441295720,1.40519264,2988.3,2985.5,0.578204]
[1763441295721,1.31249664,2988.0,2985.5,0.1727]
[1763441296093,0.405504,2987.8,2985.5,0.1727]
[1763441296293,1.31249664,2987.8,2985.3,0.1727]
[1763441296501,0.903704,2987.8,2985.3,0.1727]
[1763441296702,0.405504,2987.6,2985.4,0.3114]
[1763441297125,0.405504,2987.4,2985.4,0.3114]
[1763441297324,0.405504,2987.4,2985.3,0.1727]
[1763441297534,0.8152,2987.5,2985.3,0.1727]
[1763441297535,0.317,2987.5,2985.4,0.34489634]
[1763441297892,0.317,2987.5,2985.3,0.1727]
[1763441297893,0.903704,2987.4,2985.3,0.1727]
[1763441298093,0.903704,2987.4,2985.4,0.3114]
[1763441298297,0.405504,2987.2,2985.4,0.3114]
[1763441298546,0.405504,2987.4,2985.3,0.1727]
[1763441298710,0.317,2987.5,2985.5,0.3114]
[1763441298894,0.405504,2987.4,2985.5,0.3114]
[1763441299098,1.31249664,2987.2,2984.8,0.3114]
[1763441299334,0.405504,2987.0,2984.9,0.03350195]
[1763441299548,0.317,2987.5,2984.9,0.03350195]
[1763441299549,0.317,2987.5,2984.9,0.405504]
[1763441299848,0.4533,2987.4,2985.1,0.405504]
[1763441300210,0.4533,2987.4,2984.8,0.90699264]
[1763441300211,0.4533,2987.4,2985.2,0.34489859]
[1763441300429,0.4533,2987.4,2985.2,0.3114]
[1763441300894,0.317,2987.5,2985.3,6.45308818]
[1763441301229,0.317,2987.5,2986.0,1.31249664]
[1763441301392,0.317,2987.5,2987.4,0.1727]
[1763441301591,0.317,2987.5,2986.2,0.405504]
[1763441301848,0.317,2987.5,2986.5,6.01408671]
[1763441301996,6.01408671,2990.7,2986.7,0.405504]
[1763441302195,0.4533,2990.4,2987.8,1.31249664]
[1763441302398,0.4533,2990.4,2986.6,0.3114]
[1763441302399,0.46033923,2991.0,2988.4,1.31249664]
[1763441302649,0.46033923,2991.0,2987.0,0.54435851]
[1763441302650,0.6427,2991.0,2988.5,0.73265834]
[1763441302855,0.6427,2991.0,2985.8,0.1727]
[1763441302856,6.01408671,2990.5,2987.9,0.37829914]
[1763441303000,6.01408671,2990.5,2988.2,0.3114]
[1763441303195,6.78538671,2990.4,2988.3,0.03346384]
[1763441303522,1.36677169,2990.3,2986.7,0.405504]
[1763441303832,0.90699264,2989.1,2985.9,0.3114]
[1763441304039,0.405504,2989.1,2986.0,0.3114]
[1763441304237,0.4533,2989.0,2986.0,0.3114]
[1763441304399,0.1894,2990.3,2986.7,6.01408671]
[1763441304732,0.7713,2990.2,2987.5,0.90699264]
[1763441304931,0.7713,2990.2,2986.0,0.3114]
[1763441304932,0.7713,2990.2,2986.9,0.405504]
[1763441305233,2.8733,2990.1,2987.1,0.405504]
[1763441305395,0.90699264,2990.0,2987.3,0.405504]
[1763441305595,0.4533,2990.0,2987.1,0.3114]
[1763441305828,6.01408671,2989.2,2985.6,6.01408671]
[1763441306034,0.90699264,2989.7,2984.9,4.24610794]
[1763441306035,0.405504,2989.7,2986.2,6.01408671]
[1763441306234,0.405504,2989.5,2986.4,0.405504]
[1763441306392,0.405504,2989.5,2986.6,0.405504]
[1763441306592,0.4533,2989.4,2986.7,0.03348176]
[1763441306796,0.4533,2989.4,2986.7,0.34488176]
[1763441307019,1.21,2990.1,2987.0,0.405504]
[1763441307237,0.4533,2989.3,2987.0,0.405504]
[1763441307555,0.405504,2989.2,2986.2,0.3114]
[1763441307731,0.4533,2989.3,2986.2,0.3114]
[1763441307911,0.405504,2989.1,2986.2,0.3114]
[1763441308234,0.405504,2988.9,2986.2,0.3114]
[1763441308528,0.317,2988.8,2986.2,0.3114]
[1763441308732,0.7703,2988.8,2986.2,0.3114]
[1763441308939,0.405504,2988.6,2986.2,0.3114]
[1763441309430,0.405504,2988.6,2985.8,0.1727]
[1763441309431,0.405504,2988.4,2985.8,0.1727]
[1763441309801,0.405504,2988.2,2985.8,0.1727]
[1763441310206,0.4533,2988.2,2985.9,0.34489073]
[1763441310528,0.4533,2988.2,2986.1,0.001]
[1763441310932,0.4533,2988.2,2986.1,0.3124]
[1763441311094,0.405504,2988.1,2986.1,0.001]
[1763441311293,0.4533,2988.2,2986.1,0.001]
[1763441311529,0.87012883,2990.0,2986.5,6.01408671]
[1763441311738,0.4533,2989.5,2988.1,0.1386]
[1763441311893,0.4553,2990.1,2988.2,0.03346496]
[1763441312095,0.4553,2990.1,2988.1,0.1386]
[1763441312313,0.4553,2990.1,2988.2,0.405504]
[1763441312546,0.4553,2990.1,2988.1,0.4505]
[1763441312746,0.90699264,2989.9,2988.1,0.4505]
[1763441313046,0.90699264,2989.9,2988.1,0.1386]
[1763441313210,0.90699264,2989.5,2987.5,0.3119]
[1763441313411,0.90699264,2989.5,2987.6,0.03347168]
[1763441313659,0.90699264,2989.5,2987.5,0.3119]
[1763441314320,0.4533,2989.2,2987.5,0.3119]
[1763441314527,0.90699264,2989.5,2987.5,0.3119]
[1763441314528,0.90699264,2989.5,2987.6,0.43897568]
[1763441314722,0.002,2990.1,2986.9,0.90699264]
[1763441314723,0.002,2990.1,2988.5,1.31249664]
[1763441315047,0.002,2990.1,2988.7,0.405504]
[1763441315342,1.21,2989.7,2988.6,0.717404]
[1763441315522,1.21,2989.7,2988.7,0.3119]
[1763441315723,1.21,2989.7,2988.8,0.43896224]
[1763441315928,0.316,2989.6,2988.8,0.405504]
[1763441316223,0.316,2989.6,2989.0,0.405504]
[1763441316627,0.002,2990.1,2989.5,0.405504]
[1763441316950,0.002,2990.1,2989.6,1.0643397]
[1763441317152,0.002,2990.1,2989.7,0.03344817]
[1763441317354,0.002,2990.1,2989.1,0.405504]
[1763441317556,0.002,2990.1,2989.1,0.3119]
[1763441318061,0.315,2990.0,2988.7,0.03345936]
[1763441318217,0.315,2990.0,2988.5,0.3119]
[1763441318815,0.315,2990.0,2988.6,0.43896448]
[1763441319018,0.315,2990.0,2988.7,0.717404]
[1763441319421,0.315,2990.0,2988.8,0.3119]
[1763441319622,0.315,2990.0,2988.9,0.43896112]
[1763441319822,0.315,2990.0,2988.9,0.405504]
[1763441320025,0.315,2990.0,2989.1,0.405504]
[1763441320330,0.315,2990.0,2989.2,0.90699264]
[1763441320530,0.315,2990.0,2989.3,0.8765916]
[1763441320860,0.315,2990.0,2989.3,1.1884916]
[1763441321058,0.315,2990.0,2989.4,0.405504]
[1763441321260,0.002,2990.1,2989.5,0.405504]
[1763441321557,0.87012883,2993.3,2989.5,0.405504]
[1763441321558,0.18,2992.5,2989.8,1.31249664]
[1763441321743,0.18,2992.5,2989.3,0.84313896]
[1763441321744,0.18,2992.5,2990.6,1.31249664]
[1763441322115,0.18,2992.5,2990.8,0.405504]
[1763441322330,0.4746,2992.4,2990.8,0.405504]
[1763441322550,0.4746,2992.4,2990.4,0.405504]
[1763441322755,0.314,2992.3,2990.4,0.405504]
[1763441322940,0.314,2992.3,2990.4,0.3099]
[1763441323271,0.314,2992.3,2991.2,1.31249664]
[1763441323470,0.314,2992.3,2991.2,0.84313896]
[1763441323677,0.314,2992.3,2990.9,0.405504]
[1763441324018,0.314,2992.3,2990.9,0.715404]
[1763441324255,0.314,2992.3,2991.1,0.405504]
[1763441324440,0.314,2992.3,2991.4,1.31249664]
[1763441324635,0.314,2992.3,2991.5,0.84313896]
[1763441324874,0.002,2993.8,2991.6,0.74883092]
[1763441325228,2.8926,2993.7,2991.6,0.715404]
[1763441325567,0.405504,2993.5,2991.1,0.405504]
[1763441325766,0.4746,2993.6,2991.1,0.43893651]
[1763441326064,0.4746,2993.5,2991.4,0.405504]
[1763441326231,0.314,2993.4,2991.6,0.405504]
[1763441326621,0.314,2993.4,2991.7,0.3099]
[1763441326823,0.7886,2993.4,2991.7,0.3099]
[1763441327074,0.7886,2993.4,2991.8,0.405504]
[1763441327302,0.314,2993.4,2992.0,0.405504]
[1763441327463,0.314,2993.4,2993.3,0.544704]
[1763441327761,0.314,2993.4,2993.3,0.1392]
[1763441327926,0.002,2993.8,2993.4,0.405504]
[1763441328124,0.002,2995.4,2993.6,0.405504]
[1763441328342,0.002,2995.4,2993.8,0.405504]
[1763441328523,0.002,2995.4,2993.7,0.03340348]
[1763441328524,0.002,2995.4,2994.0,0.405504]
[1763441328942,0.002,2995.4,2994.1,0.34129901]
[1763441329156,0.002,2995.4,2994.3,0.90699264]
[1763441329426,0.002,2995.4,2994.1,0.3079]
[1763441329736,0.002,2995.4,2993.7,0.90699264]
[1763441329737,0.314,2995.0,2994.3,1.31249664]
[1763441329946,0.314,2995.0,2994.3,0.90699264]
[1763441330146,0.314,2995.0,2994.4,0.405504]
[1763441330468,0.314,2995.0,2992.3,3.554]
[1763441330469,0.314,2995.0,2993.4,1.31249664]
[1763441330631,0.314,2995.0,2993.4,1.34590346]
[1763441330966,0.314,2995.0,2994.0,1.31249664]
[1763441331166,0.314,2995.0,2993.3,0.1392]
[1763441331167,0.314,2995.0,2994.6,1.31249664]
[1763441331328,0.002,2995.4,2994.8,0.405504]
[1763441331858,0.002,2995.4,2994.7,0.03339232]
[1763441331859,0.002,2995.4,2995.0,0.405504]
[1763441332227,0.002,2995.4,2995.2,1.31249664]
[1763441332430,0.002,2995.7,2995.4,0.405504]
[1763441332631,0.002,2995.7,2995.6,0.139]
[1763441333031,0.315,2995.7,2995.6,0.4172]
[1763441333224,0.09083496,2997.0,2995.6,0.4172]
[1763441333461,0.09083496,2997.0,2995.8,0.90699264]
[1763441333662,0.09083496,2997.0,2996.5,0.90699264]
[1763441333863,0.09083496,2997.0,2996.0,0.2782]
[1763441334068,0.6546,2996.9,2995.6,0.139]
[1763441334291,0.6546,2996.9,2994.2,0.0333979]
[1763441334292,0.6546,2996.9,2994.6,0.2782]
[1763441334562,0.5079979,2996.8,2994.6,0.2782]
[1763441334778,0.4746,2996.8,2994.8,7.11889295]
[1763441334928,0.4746,2996.8,2994.9,1.02681862]
[1763441335132,0.313,2996.7,2995.5,0.90699264]
[1763441335350,1.207,2996.6,2995.6,0.405504]
[1763441335569,1.207,2996.6,2996.1,1.31249664]
[1763441335874,0.313,2996.7,2996.6,0.405504]
[1763441336163,0.313,2996.7,2996.5,0.139]
[1763441336363,0.313,2996.7,2996.2,0.405504]
[1763441336868,0.313,2996.7,2995.7,0.139]
[1763441337163,0.313,2996.7,2995.7,1.26150856]
[1763441337384,0.313,2996.7,2995.9,0.405504]
[1763441337669,0.313,2996.7,2996.3,0.405504]
[1763441337974,0.4746,2998.9,2996.5,0.405504]
[1763441338141,0.6546,2998.5,2996.7,0.405504]
[1763441338348,0.002,2999.3,2996.9,0.405504]
[1763441338349,0.4746,2999.2,2996.9,0.405504]
[1763441338527,0.4746,2999.2,2997.4,0.90699264]
[1763441338723,0.6546,2999.0,2997.5,1.20809256]
[1763441338929,0.6546,2999.0,2997.0,0.405504]
[1763441339259,0.002,2999.3,2997.5,1.31249664]
[1763441339429,0.002,2999.3,2997.7,0.405504]
[1763441339628,0.002,2999.3,2997.9,0.405504]
[1763441339854,0.313,2999.2,2997.8,0.2782]
[1763441340066,0.313,2999.2,2997.3,0.405504]
[1763441340067,0.0333979,2999.1,2997.3,0.405504]
[1763441340281,0.313,2999.2,2997.5,1.31249664]
[1763441340481,0.313,2999.2,2997.7,0.405504]
[1763441340694,0.4746,2999.1,2997.5,0.405504]
[1763441340976,0.4746,2999.1,2995.3,0.1682345]
[1763441340977,0.4746,2999.1,2996.9,0.405504]
[1763441341267,0.4746,2999.1,2997.1,0.405504]
[1763441341477,0.4746,2999.1,2997.0,0.0333667]
[1763441341478,0.4746,2999.1,2997.3,0.405504]
[1763441341765,0.4746,2999.1,2997.5,0.405504]
[1763441342070,0.0333979,2999.0,2996.1,7.39709295]
[1763441342271,0.0333979,2999.0,2995.7,0.98330856]
[1763441342272,0.405504,2999.0,2996.2,0.7730849]
[1763441342427,0.405504,2998.8,2995.7,0.139]
[1763441342627,0.5079979,2998.9,2995.8,0.03338006]
[1763441342628,0.405504,2998.6,2995.8,0.03338006]
[1763441342987,0.5079979,2998.9,2994.7,1.6377426]
[1763441342988,0.405504,2998.4,2994.7,0.2782]
[1763441343127,0.405504,2998.1,2994.8,0.03339121]
[1763441343334,0.0333979,2998.0,2994.8,0.74861963]
[1763441343528,0.405504,2997.9,2994.8,0.74861963]
[1763441343775,0.405504,2997.7,2994.8,0.03339121]
[1763441343940,0.405504,2997.5,2994.2,0.0333979]
[1763441344144,0.313,2997.4,2995.2,7.11889295]
[1763441344480,0.313,2997.4,2996.0,0.405504]
[1763441344633,0.313,2997.4,2996.5,1.31249664]
[1763441344833,0.313,2997.4,2996.5,1.3458689]
[1763441345034,0.313,2997.4,2997.1,1.31249664]
[1763441345227,0.313,2997.4,2997.3,0.405504]
[1763441345455,1.519,2997.4,2997.3,0.683704]
[1763441345654,1.206,2997.4,2997.3,0.683704]
[1763441345842,0.002,2999.3,2997.3,0.683704]
[1763441346040,0.002,2999.3,2997.8,1.31249664]
[1763441346241,0.4864,2999.3,2998.0,0.405504]
[1763441346653,0.4864,2999.3,2998.2,0.405504]
[1763441346828,0.4864,2999.3,2997.7,7.11889295]
[1763441346829,0.4864,2999.3,2996.7,0.2782]
[1763441347034,0.3463979,2999.2,2997.0,1.31249664]
[1763441347384,0.3463979,2999.2,2997.6,1.31249664]
[1763441347385,0.002,2997.8,2997.6,1.31249664]
[1763441347667,0.002,2997.8,2997.6,1.34585666]
[1763441347827,0.002,2997.8,2997.7,0.683704]
[1763441348033,0.002,2997.8,2997.7,0.405504]
[1763441348660,0.313,2999.2,2997.8,0.679704]
[1763441348881,0.313,2999.2,2998.8,1.31249664]
[1763441349080,0.313,2999.2,2998.7,7.11889295]
[1763441349081,0.313,2999.2,2998.2,0.90699264]
[1763441349374,0.313,2999.2,2998.4,0.405504]
[1763441349538,0.313,2999.2,2998.4,1.24864296]
[1763441350234,0.002,2999.9,2998.4,1.24864296]
[1763441350235,0.002,2999.9,2999.2,0.405504]
[1763441350460,0.002,2999.9,2999.3,0.43884511]
[1763441350662,0.1855,2999.9,2998.6,0.1352]
[1763441350860,0.1855,2999.9,2998.7,0.405504]
[1763441351091,0.1855,2999.9,2998.4,0.405504]
[1763441351273,0.1855,2999.9,2997.0,7.11889295]
[1763441351274,0.4844,2999.3,2997.0,7.11889295]
[1763441351571,0.313,2999.2,2997.1,1.65224752]
[1763441351758,0.313,2999.2,2997.1,0.74525488]
[1763441351983,0.405504,2999.0,2996.2,7.11889295]
[1763441352135,0.405504,2998.8,2996.2,7.11889295]
[1763441352476,0.0333979,2998.9,2995.3,0.7118893]
[1763441352477,7.52439695,2998.6,2995.3,0.7118893]
[1763441352706,7.52439695,2998.6,2994.8,0.2752]
[1763441352707,0.94039054,2998.5,2994.8,0.2752]
[1763441352837,0.405504,2998.4,2995.4,7.11889295]